fUSD/lending_fUSD_20250804
["ID","MTS","AMOUNT","RATE_DAILY","PERIOD"]
[377226335,1754305841306,-899.75580869,0.00038348,7]
[377226336,1754305841377,-555.33255697,0.00038348,7]
[377226337,1754305841389,-257.97850835,0.00038348,7]
[377226339,1754305841401,-11190.47164562,0.00038348,7]
[377226341,1754305841413,-452.64,0.00038348,7]
[377226343,1754305841424,-20684.91128045,0.00038348,7]
[377226346,1754305841447,-756.50076464,0.00038348,7]
[377226348,1754305841458,-12583.7506473,0.00038348,7]
[377226372,1754305842263,-539.95814879,0.00037976,2]
[377226374,1754305842273,-624.96,0.00038345,120]
[377226376,1754305842282,-624.96,0.00038345,120]
[377226378,1754305842292,-624.96,0.00038345,120]
[377226380,1754305842302,-624.96,0.00038345,120]
[377226382,1754305842311,-2951.96889279,0.00038348,7]
[377226387,1754305842349,-624.96,0.00038345,120]
[377226389,1754305842360,-58.3582767,0.00038348,7]
[377226392,1754305842374,-3085.13154917,0.00038348,7]
[377226397,1754305842422,-1325.2551768,0.00038348,7]
[377226400,1754305842441,-2256.50655973,0.00038348,7]
[377226404,1754305842468,-10414.46424763,0.00038348,7]
[377226405,1754305842479,-427.39638274,0.00038348,7]
[377226409,1754305842514,-624.96,0.00038345,120]
[377226411,1754305842524,-438344.10891063,0.00038348,7]
[377226413,1754305842535,-465.22216998,0.00038348,7]
[377226447,1754305844404,-600.0,0.00032678,2]
[377226448,1754305844414,-600.0,0.00032678,2]
[377226449,1754305844423,-600.0,0.00032678,2]
[377226450,1754305844433,-456.04641026,0.00035244,2]
[377226451,1754305844442,-304.03094018,0.00035244,2]
[377226452,1754305844451,-624.96,0.00038345,120]
[377226453,1754305844461,-624.96,0.00038345,120]
[377226454,1754305844470,-624.96,0.00038345,120]
[377226455,1754305844480,-624.96,0.00038345,120]
[377226456,1754305844489,-624.96,0.00038345,120]
[377226457,1754305844800,-624.96,0.00038345,120]
[377226458,1754305844819,-624.96,0.00038345,120]
[377226459,1754305844829,-624.96,0.00038345,120]
[377226460,1754305844838,-624.96,0.00038345,120]
[377226461,1754305844848,-624.96,0.00038345,120]
[377226462,1754305844858,-624.96,0.00038345,120]
[377226463,1754305844868,-14813.79158885,0.00038348,7]
[377226464,1754305844884,-835.04991627,0.00038348,7]
[377226465,1754305844936,-3398.39417506,0.00038348,7]
[377226466,1754305844955,-391.32159697,0.00038348,7]
[377226467,1754305844968,-43852.53582571,0.00038348,7]
[377226468,1754305844980,-5381.84268566,0.00038348,7]
[377226469,1754305844991,-2305.68935329,0.00038348,7]
[377226470,1754305845029,-447.27153168,0.00038345,120]
[377226471,1754305845040,-177.68846832,0.00038345,120]
[377226472,1754305845049,-279.0955317,0.00038348,7]
[377226473,1754305845062,-386.4901369,0.00038348,7]
[377226474,1754305845074,-429.9792262,0.00038348,7]
[377226475,1754305845086,-624.711,0.00038348,7]
[377226476,1754305845097,-812.50317059,0.00038348,7]
[377226477,1754305845108,-512.6900035,0.00038348,7]
[377226478,1754305845119,-1865.55099548,0.00038348,7]
[377226479,1754305845131,-6007.0,0.00038348,7]
[377226480,1754305845274,-539.51414109,0.00032678,2]
[377226481,1754305846480,-60.48585891,0.00032678,2]
[377226482,1754305846490,-528.33,0.00032678,2]
[377226483,1754305846500,-150.0,0.000347,30]
[377226484,1754305846510,-600.0,0.00036242,2]
[377226485,1754305846520,-600.0,0.00036242,2]
[377226486,1754305846529,-539.95814879,0.00038256,2]
[377226487,1754305846539,-624.96,0.00038345,120]
[377226488,1754305846548,-625.11852996,0.00038345,120]
[377226489,1754305846558,-31251.49839005,0.00038348,7]
[377226493,1754305852230,-5859803.23975745,0.00038348,7]
[377226494,1754305852240,-151.0,0.00038348,7]
[377226495,1754305852252,-151.0,0.00038348,7]
[377226496,1754305852261,-1213.0,0.00038348,7]
[377226497,1754305852271,-151.0,0.00038348,7]
[377226498,1754305852281,-200.0,0.00038348,2]
[377226499,1754305852290,-200.0,0.00038348,2]
[377226500,1754305852300,-3010.52659085,0.00038349,2]
[377226501,1754305852311,-14861.71953595,0.0003835,2]
[377226502,1754305852321,-1000.0,0.00038355,2]
[377226503,1754305852333,-150.0,0.00038355,2]
[377226504,1754305852343,-189.0,0.00038355,2]
[377226505,1754305852354,-1119.04058445,0.00038356,2]
[377226506,1754305852363,-254.55261723,0.00038356,4]
[377226507,1754305852372,-2510.72950949,0.00038356,2]
[377226508,1754305852382,-400.0,0.00038356,2]
[377226509,1754305852391,-511.55178483,0.00038356,2]
[377226510,1754305852401,-400.0,0.00038356,2]
[377226511,1754305852413,-400.0,0.00038356,2]
[377226512,1754305852422,-400.0,0.00038356,2]
[377226513,1754305852432,-400.0,0.00038356,2]
[377226514,1754305852441,-400.0,0.00038356,2]
[377226515,1754305852450,-400.0,0.00038356,2]
[377226516,1754305852460,-400.0,0.00038356,2]
[377226517,1754305852469,-163.15639396,0.00038356,2]
[377226518,1754305852479,-400.0,0.00038356,2]
[377226519,1754305852488,-400.0,0.00038356,2]
[377226520,1754305852498,-489.98014498,0.00038356,2]
[377226521,1754305852507,-400.0,0.00038356,2]
[377226522,1754305852516,-400.0,0.00038356,2]
[377226523,1754305852526,-400.0,0.00038356,2]
[377226524,1754305852536,-400.0,0.00038356,2]
[377226525,1754305852545,-400.0,0.00038356,2]
[377226526,1754305852554,-400.0,0.00038356,2]
[377226527,1754305852563,-400.0,0.00038356,2]
[377226528,1754305852574,-400.0,0.00038356,2]
[377226529,1754305852583,-400.0,0.00038356,2]
[377226530,1754305852592,-400.0,0.00038356,2]
[377226531,1754305852602,-400.0,0.00038356,2]
[377226532,1754305852611,-400.0,0.00038356,2]
[377226533,1754305852620,-400.0,0.00038356,2]
[377226534,1754305852630,-400.0,0.00038356,2]
[377226535,1754305852639,-400.0,0.00038356,2]
[377226536,1754305852649,-400.0,0.00038356,2]
[377226537,1754305852658,-400.0,0.00038356,2]
[377226538,1754305852668,-400.0,0.00038356,2]
[377226539,1754305852677,-400.0,0.00038356,2]
[377226540,1754305852687,-400.0,0.00038356,2]
[377226541,1754305852696,-400.0,0.00038356,2]
[377226542,1754305852706,-400.0,0.00038356,2]
[377226543,1754305852715,-400.0,0.00038356,2]
[377226544,1754305852724,-400.0,0.00038356,2]
[377226545,1754305852734,-400.0,0.00038356,2]
[377226546,1754305852743,-400.0,0.00038356,2]
[377226547,1754305852752,-400.0,0.00038356,2]
[377226548,1754305852761,-400.0,0.00038356,2]
[377226549,1754305852771,-400.0,0.00038356,2]
[377226550,1754305852780,-400.0,0.00038356,2]
[377226551,1754305852789,-400.0,0.00038356,2]
[377226552,1754305852798,-400.0,0.00038356,2]
[377226553,1754305852808,-400.0,0.00038356,2]
[377226554,1754305852817,-400.0,0.00038356,2]
[377226555,1754305852825,-400.0,0.00038356,2]
[377226556,1754305852833,-400.0,0.00038356,2]
[377226557,1754305852842,-400.0,0.00038356,2]
[377226558,1754305852852,-400.0,0.00038356,2]
[377226559,1754305852862,-547.58,0.00038356,2]
[377226560,1754305852871,-400.0,0.00038356,2]
[377226561,1754305852881,-500.0,0.00038356,2]
[377226562,1754305852891,-500.0,0.00038356,2]
[377226563,1754305852902,-500.0,0.00038356,2]
[377226564,1754305852911,-458.04,0.00038356,2]
[377226565,1754305852919,-500.0,0.00038356,2]
[377226566,1754305852926,-500.0,0.00038356,2]
[377226567,1754305852933,-500.0,0.00038356,2]
[377226568,1754305852943,-500.0,0.00038356,2]
[377226569,1754305852951,-400.0,0.00038356,2]
[377226570,1754305852958,-1200.66,0.00038356,2]
[377226571,1754305852966,-586.47,0.00038356,2]
[377226572,1754305852974,-520.3,0.00038356,2]
[377226573,1754305852983,-400.0,0.00038356,2]
[377226574,1754305852991,-400.0,0.00038356,2]
[377226575,1754305852999,-400.0,0.00038356,2]
[377226576,1754305853248,-400.0,0.00038356,2]
[377226577,1754305853286,-400.0,0.00038356,2]
[377226578,1754305853296,-452.57,0.00038356,2]
[377226579,1754305853306,-400.0,0.00038356,2]
[377226580,1754305853315,-311.21727742,0.00038356,2]
[377226581,1754305853325,-404.61952366,0.00038356,2]
[377226582,1754305853335,-400.0,0.00038356,2]
[377226583,1754305853345,-400.0,0.00038356,2]
[377226584,1754305853355,-472.84,0.00038356,2]
[377226585,1754305853365,-400.0,0.00038356,2]
[377226586,1754305853375,-400.0,0.00038356,2]
[377226587,1754305853385,-1404.01,0.00038356,2]
[377226588,1754305853394,-400.0,0.00038356,2]
[377226589,1754305853404,-400.0,0.00038356,2]
[377226590,1754305853414,-1341.8,0.00038356,2]
[377226591,1754305853424,-400.0,0.00038356,2]
[377226592,1754305853433,-400.0,0.00038356,2]
[377226593,1754305853443,-484.06,0.00038356,2]
[377226594,1754305853452,-1693.03,0.00038356,2]
[377226595,1754305853462,-667.41,0.00038356,2]
[377226596,1754305853471,-400.0,0.00038356,2]
[377226597,1754305853481,-400.0,0.00038356,2]
[377226598,1754305853490,-400.0,0.00038356,2]
[377226599,1754305853500,-400.0,0.00038356,2]
[377226600,1754305853510,-537.19,0.00038356,2]
[377226601,1754305853519,-849.99,0.00038356,2]
[377226602,1754305853529,-931.14,0.00038356,2]
[377226603,1754305853538,-458.07,0.00038356,2]
[377226604,1754305853547,-1076.15,0.00038356,2]
[377226605,1754305853557,-1903.28,0.00038356,2]
[377226606,1754305853567,-400.0,0.00038356,2]
[377226607,1754305853576,-400.0,0.00038356,2]
[377226608,1754305853586,-400.0,0.00038356,2]
[377226609,1754305853596,-400.0,0.00038356,2]
[377226610,1754305853605,-400.0,0.00038356,2]
[377226611,1754305853615,-400.0,0.00038356,2]
[377226612,1754305853624,-643.67,0.00038356,2]
[377226613,1754305853634,-1064.8,0.00038356,2]
[377226614,1754305853644,-400.0,0.00038356,2]
[377226615,1754305853653,-595.01,0.00038356,2]
[377226616,1754305853663,-400.0,0.00038356,2]
[377226617,1754305853673,-400.0,0.00038356,2]
[377226618,1754305853683,-400.0,0.00038356,2]
[377226619,1754305853692,-1756.29,0.00038356,2]
[377226620,1754305853702,-824.14,0.00038356,2]
[377226621,1754305853711,-400.0,0.00038356,2]
[377226622,1754305853720,-1696.93,0.00038356,2]
[377226623,1754305853730,-400.0,0.00038356,2]
[377226624,1754305853739,-400.0,0.00038356,2]
[377226625,1754305853748,-400.0,0.00038356,2]
[377226626,1754305853758,-400.0,0.00038356,2]
[377226627,1754305853767,-767.86,0.00038356,2]
[377226628,1754305853777,-400.0,0.00038356,2]
[377226629,1754305853786,-1492.28,0.00038356,2]
[377226630,1754305853796,-400.0,0.00038356,2]
[377226631,1754305853805,-400.0,0.00038356,2]
[377226632,1754305853814,-400.0,0.00038356,2]
[377226633,1754305853824,-400.0,0.00038356,2]
[377226634,1754305853833,-400.0,0.00038356,2]
[377226635,1754305853843,-400.0,0.00038356,2]
[377226636,1754305853852,-400.0,0.00038356,2]
[377226637,1754305853862,-535.60610937,0.00038356,2]
[377226638,1754305853872,-500.0,0.00038356,2]
[377226639,1754305853881,-500.0,0.00038356,2]
[377226640,1754305853892,-311.42467375,0.00038356,2]
[377226641,1754305853903,-500.0,0.00038356,2]
[377226642,1754305853913,-661.87,0.00038356,2]
[377226643,1754305853922,-500.0,0.00038356,2]
[377226644,1754305853932,-500.0,0.00038356,2]
[377226645,1754305853941,-500.0,0.00038356,2]
[377226646,1754305853951,-484.48010952,0.00038356,2]
[377226647,1754305853961,-400.0,0.00038356,2]
[377226648,1754305853970,-400.0,0.00038356,2]
[377226649,1754305853979,-400.0,0.00038356,2]
[377226650,1754305853989,-400.0,0.00038356,2]
[377226651,1754305853998,-400.0,0.00038356,2]
[377226652,1754305854008,-400.0,0.00038356,2]
[377226653,1754305854017,-400.0,0.00038356,2]
[377226654,1754305854027,-400.45,0.00038356,2]
[377226655,1754305854036,-400.0,0.00038356,2]
[377226656,1754305854046,-1939.24,0.00038356,2]
[377226657,1754305854055,-400.0,0.00038356,2]
[377226658,1754305854065,-786.11,0.00038356,2]
[377226659,1754305854074,-835.46,0.00038356,2]
[377226660,1754305854084,-1820.66,0.00038356,2]
[377226661,1754305854094,-400.0,0.00038356,2]
[377226662,1754305854104,-150.0,0.00038356,12]
[377226663,1754305854113,-401.23909468,0.00038356,2]
[377226664,1754305854122,-463.48,0.00038356,2]
[377226665,1754305854131,-400.0,0.00038356,2]
[377226666,1754305854141,-205.67038288,0.00038356,2]
[377226667,1754305854151,-400.0,0.00038356,2]
[377226668,1754305854160,-400.0,0.00038356,2]
[377226669,1754305854169,-1385.33,0.00038356,2]
[377226670,1754305854179,-400.0,0.00038356,2]
[377226671,1754305854189,-400.0,0.00038356,2]
[377226672,1754305854200,-400.0,0.00038356,2]
[377226673,1754305854209,-498.89,0.00038356,2]
[377226674,1754305854219,-499.13,0.00038356,2]
[377226675,1754305854228,-201.20151667,0.00038356,2]
[377226676,1754305854238,-1516.62,0.00038356,2]
[377226677,1754305854247,-400.0,0.00038356,2]
[377226678,1754305854257,-900.0,0.00038356,2]
[377226679,1754305854267,-400.0,0.00038356,2]
[377226680,1754305854276,-400.0,0.00038356,2]
[377226681,1754305854285,-400.0,0.00038356,2]
[377226682,1754305854295,-275.69068579,0.00038356,2]
[377226683,1754305854304,-400.0,0.00038356,2]
[377226684,1754305854314,-400.0,0.00038356,2]
[377226685,1754305854324,-550.11,0.00038356,2]
[377226686,1754305854333,-400.0,0.00038356,2]
[377226687,1754305854343,-400.0,0.00038356,2]
[377226688,1754305854352,-400.0,0.00038356,2]
[377226689,1754305854362,-454.35,0.00038356,2]
[377226690,1754305854371,-1067.05,0.00038356,2]
[377226691,1754305854381,-1153.57,0.00038356,2]
[377226692,1754305854390,-915.17,0.00038356,2]
[377226693,1754305854400,-400.0,0.00038356,2]
[377226694,1754305854409,-470.47,0.00038356,2]
[377226695,1754305854419,-400.0,0.00038356,2]
[377226696,1754305854429,-400.0,0.00038356,2]
[377226697,1754305854438,-400.0,0.00038356,2]
[377226698,1754305854449,-410.55,0.00038356,2]
[377226699,1754305854458,-400.0,0.00038356,2]
[377226700,1754305854468,-400.0,0.00038356,2]
[377226701,1754305854478,-500.0,0.00038356,2]
[377226702,1754305854487,-500.0,0.00038356,2]
[377226703,1754305854497,-500.0,0.00038356,2]
[377226704,1754305854507,-500.0,0.00038356,2]
[377226705,1754305854517,-402.78043969,0.00038356,2]
[377226706,1754305854526,-1488.11,0.00038356,2]
[377226707,1754305854536,-401.08583624,0.00038356,2]
[377226708,1754305854546,-661.14,0.00038356,2]
[377226709,1754305854556,-742.88,0.00038356,2]
[377226710,1754305854566,-400.0,0.00038356,2]
[377226711,1754305854575,-400.0,0.00038356,2]
[377226712,1754305854585,-441.54,0.00038356,2]
[377226713,1754305854595,-1102.43,0.00038356,2]
[377226714,1754305854604,-916.79,0.00038356,2]
[377226715,1754305854614,-500.0,0.00038356,2]
[377226716,1754305854624,-500.0,0.00038356,2]
[377226717,1754305854634,-500.0,0.00038356,2]
[377226718,1754305854644,-500.0,0.00038356,2]
[377226719,1754305854653,-500.0,0.00038356,2]
[377226720,1754305854663,-587.55,0.00038356,2]
[377226721,1754305854673,-424.37,0.00038356,2]
[377226722,1754305854682,-400.0,0.00038356,2]
[377226723,1754305854692,-400.0,0.00038356,2]
[377226724,1754305854702,-400.0,0.00038356,2]
[377226725,1754305854711,-400.0,0.00038356,2]
[377226726,1754305854721,-400.0,0.00038356,2]
[377226727,1754305854730,-400.0,0.00038356,2]
[377226728,1754305854740,-1819.37,0.00038356,2]
[377226729,1754305854749,-1188.91,0.00038356,2]
[377226730,1754305854758,-400.0,0.00038356,2]
[377226731,1754305854768,-400.0,0.00038356,2]
[377226732,1754305854777,-400.0,0.00038356,2]
[377226733,1754305854787,-410.63,0.00038356,2]
[377226734,1754305854797,-400.0,0.00038356,2]
[377226735,1754305854806,-439.11,0.00038356,2]
[377226736,1754305854818,-401.92044167,0.00038356,2]
[377226737,1754305854828,-400.0,0.00038356,2]
[377226738,1754305854842,-400.0,0.00038356,2]
[377226739,1754305854852,-400.0,0.00038356,2]
[377226740,1754305854861,-400.0,0.00038356,2]
[377226741,1754305854870,-400.0,0.00038356,2]
[377226742,1754305854880,-400.0,0.00038356,2]
[377226743,1754305854890,-1119.27,0.00038356,2]
[377226744,1754305854903,-400.0,0.00038356,2]
[377226745,1754305854913,-403.05855367,0.00038356,2]
[377226746,1754305854923,-400.0,0.00038356,2]
[377226747,1754305854932,-400.0,0.00038356,2]
[377226748,1754305854942,-884.11,0.00038356,2]
[377226749,1754305854952,-400.0,0.00038356,2]
[377226750,1754305854961,-465.18,0.00038356,2]
[377226751,1754305854971,-400.88591507,0.00038356,2]
[377226752,1754305854981,-400.0,0.00038356,2]
[377226753,1754305854991,-401.70783653,0.00038356,2]
[377226754,1754305855000,-400.0,0.00038356,2]
[377226755,1754305855010,-400.0,0.00038356,2]
[377226756,1754305855020,-1124.7,0.00038356,2]
[377226757,1754305855030,-977.67,0.00038356,2]
[377226758,1754305855039,-953.16,0.00038356,2]
[377226759,1754305855050,-1903.44,0.00038356,2]
[377226760,1754305855060,-400.0,0.00038356,2]
[377226761,1754305855070,-449.54,0.00038356,2]
[377226762,1754305855079,-400.0,0.00038356,2]
[377226763,1754305855089,-400.0,0.00038356,2]
[377226764,1754305855098,-400.0,0.00038356,2]
[377226765,1754305855107,-400.0,0.00038356,2]
[377226766,1754305855117,-400.0,0.00038356,2]
[377226767,1754305855127,-2558.85,0.00038356,2]
[377226768,1754305855136,-400.0,0.00038356,2]
[377226769,1754305855146,-480.36,0.00038356,2]
[377226770,1754305855155,-400.0,0.00038356,2]
[377226771,1754305855165,-400.0,0.00038356,2]
[377226772,1754305855174,-2716.06,0.00038356,2]
[377226773,1754305855184,-400.0,0.00038356,2]
[377226774,1754305855194,-400.0,0.00038356,2]
[377226775,1754305855203,-400.0,0.00038356,2]
[377226776,1754305855213,-400.0,0.00038356,2]
[377226777,1754305855223,-1399.58,0.00038356,2]
[377226778,1754305855232,-1797.0,0.00038356,2]
[377226779,1754305855242,-400.0,0.00038356,2]
[377226780,1754305855251,-400.0,0.00038356,2]
[377226781,1754305855260,-400.0,0.00038356,2]
[377226782,1754305855271,-400.0,0.00038356,2]
[377226783,1754305855281,-2022.23,0.00038356,2]
[377226784,1754305855290,-400.0,0.00038356,2]
[377226785,1754305855300,-459.32,0.00038356,2]
[377226786,1754305855310,-4159.78,0.00038356,2]
[377226787,1754305855320,-400.0,0.00038356,2]
[377226788,1754305855330,-687.73,0.00038356,2]
[377226789,1754305855340,-452.62,0.00038356,2]
[377226790,1754305855350,-1027.4,0.00038356,2]
[377226791,1754305855360,-400.0,0.00038356,2]
[377226792,1754305855369,-743.48,0.00038356,2]
[377226793,1754305855379,-402.38608632,0.00038356,2]
[377226794,1754305855389,-482.17752089,0.00038356,2]
[377226795,1754305855400,-400.0,0.00038356,2]
[377226796,1754305855410,-400.0,0.00038356,2]
[377226797,1754305855420,-500.0,0.00038356,2]
[377226798,1754305855430,-500.0,0.00038356,2]
[377226799,1754305855440,-500.0,0.00038356,2]
[377226800,1754305855450,-500.0,0.00038356,2]
[377226801,1754305855459,-500.0,0.00038356,2]
[377226802,1754305855469,-300.0,0.00038356,2]
[377226803,1754305855479,-532.86425742,0.00038356,2]
[377226804,1754305855488,-500.0,0.00038356,2]
[377226805,1754305855498,-400.0,0.00038356,2]
[377226806,1754305855508,-400.0,0.00038356,2]
[377226807,1754305855517,-400.0,0.00038356,2]
[377226808,1754305855527,-500.0,0.00038356,2]
[377226809,1754305855537,-500.0,0.00038356,2]
[377226810,1754305855547,-500.0,0.00038356,2]
[377226811,1754305855687,-500.0,0.00038356,2]
[377226812,1754305855697,-500.0,0.00038356,2]
[377226813,1754305855707,-1103.2,0.00038356,2]
[377226814,1754305855716,-400.0,0.00038356,2]
[377226815,1754305855725,-400.0,0.00038356,2]
[377226816,1754305855735,-500.0,0.00038356,2]
[377226817,1754305855744,-2146.76,0.00038356,2]
[377226818,1754305855754,-1197.92,0.00038356,2]
[377226819,1754305855763,-400.0,0.00038356,2]
[377226820,1754305855773,-500.0,0.00038356,2]
[377226821,1754305855782,-697.9,0.00038356,2]
[377226822,1754305855791,-500.0,0.00038356,2]
[377226823,1754305855801,-500.0,0.00038356,2]
[377226824,1754305855810,-500.0,0.00038356,2]
[377226825,1754305855820,-500.0,0.00038356,2]
[377226826,1754305855829,-400.0,0.00038356,2]
[377226827,1754305855840,-400.0,0.00038356,2]
[377226828,1754305855850,-700.27,0.00038356,2]
[377226829,1754305855859,-400.0,0.00038356,2]
[377226830,1754305855868,-400.0,0.00038356,2]
[377226831,1754305855877,-400.0,0.00038356,2]
[377226832,1754305855886,-442.05,0.00038356,2]
[377226833,1754305855899,-400.0,0.00038356,2]
[377226834,1754305855909,-400.0,0.00038356,2]
[377226835,1754305855918,-400.0,0.00038356,2]
[377226836,1754305855928,-400.0,0.00038356,2]
[377226837,1754305855937,-400.0,0.00038356,2]
[377226838,1754305855946,-763.21,0.00038356,2]
[377226839,1754305855955,-664.53,0.00038356,2]
[377226840,1754305855964,-862.35,0.00038356,2]
[377226841,1754305855974,-492.45685131,0.00038356,2]
[377226842,1754305855983,-400.0,0.00038356,2]
[377226843,1754305855992,-624.93,0.00038356,2]
[377226844,1754305856001,-400.0,0.00038356,2]
[377226845,1754305856011,-400.0,0.00038356,2]
[377226846,1754305856020,-793.15,0.00038356,2]
[377226847,1754305856030,-400.0,0.00038356,2]
[377226848,1754305856040,-639.19,0.00038356,2]
[377226849,1754305856049,-605.24,0.00038356,2]
[377226850,1754305856058,-2472.68,0.00038356,2]
[377226851,1754305856068,-400.0,0.00038356,2]
[377226852,1754305856077,-400.0,0.00038356,2]
[377226853,1754305856086,-1841.68,0.00038356,2]
[377226854,1754305856096,-384.77790045,0.00038356,2]
[377226855,1754305856105,-500.0,0.00038356,2]
[377226856,1754305856115,-500.0,0.00038356,2]
[377226857,1754305856124,-500.0,0.00038356,2]
[377226858,1754305856133,-1091.38,0.00038356,2]
[377226859,1754305856142,-500.0,0.00038356,2]
[377226860,1754305856151,-400.0,0.00038356,2]
[377226861,1754305856161,-400.0,0.00038356,2]
[377226862,1754305856170,-500.0,0.00038356,2]
[377226863,1754305856179,-578.71798913,0.00038356,2]
[377226864,1754305856188,-400.0,0.00038356,2]
[377226865,1754305856198,-400.0,0.00038356,2]
[377226866,1754305856207,-569.15,0.00038356,2]
[377226867,1754305856217,-500.0,0.00038356,2]
[377226868,1754305856226,-500.0,0.00038356,2]
[377226869,1754305856236,-500.0,0.00038356,2]
[377226870,1754305856245,-500.0,0.00038356,2]
[377226871,1754305856254,-408.40925698,0.00038356,2]
[377226872,1754305856263,-482.87,0.00038356,2]
[377226873,1754305856272,-504.56556833,0.00038356,7]
[377226874,1754305856282,-400.0,0.00038356,2]
[377226875,1754305856292,-400.0,0.00038356,2]
[377226876,1754305856302,-1179.1,0.00038356,2]
[377226877,1754305856311,-400.0,0.00038356,2]
[377226878,1754305856321,-400.0,0.00038356,2]
[377226879,1754305856330,-400.0,0.00038356,2]
[377226880,1754305856340,-400.0,0.00038356,2]
[377226881,1754305856349,-1320.13,0.00038356,2]
[377226882,1754305856359,-400.0,0.00038356,2]
[377226883,1754305856369,-1348.28,0.00038356,2]
[377226884,1754305856380,-406.08031973,0.00038356,2]
[377226885,1754305856389,-908.97,0.00038356,2]
[377226886,1754305856399,-515.12923283,0.00038356,2]
[377226887,1754305856408,-400.0,0.00038356,2]
[377226888,1754305856418,-1144.27,0.00038356,2]
[377226889,1754305856428,-1407.62,0.00038356,2]
[377226890,1754305856438,-448.56,0.00038356,2]
[377226891,1754305856448,-424.01,0.00038356,2]
[377226892,1754305856457,-400.0,0.00038356,2]
[377226893,1754305856467,-853.71,0.00038356,2]
[377226894,1754305856476,-609.84,0.00038356,2]
[377226895,1754305856485,-600.02,0.00038356,2]
[377226896,1754305856495,-400.0,0.00038356,2]
[377226897,1754305856504,-400.0,0.00038356,2]
[377226898,1754305856514,-1274.99,0.00038356,2]
[377226899,1754305856524,-400.0,0.00038356,2]
[377226900,1754305856533,-2778.93,0.00038356,2]
[377226901,1754305856542,-400.0,0.00038356,2]
[377226902,1754305856552,-800.16,0.00038356,2]
[377226903,1754305856561,-400.0,0.00038356,2]
[377226904,1754305856570,-787.7,0.00038356,2]
[377226905,1754305856579,-627.38,0.00038356,2]
[377226906,1754305856589,-500.6,0.00038356,2]
[377226907,1754305856598,-499.94,0.00038356,2]
[377226908,1754305856607,-257.47282995,0.00038356,2]
[377226909,1754305856617,-400.0,0.00038356,2]
[377226910,1754305856626,-400.0,0.00038356,2]
[377226911,1754305856636,-400.0,0.00038356,2]
[377226912,1754305856646,-500.0,0.00038356,2]
[377226913,1754305856655,-500.0,0.00038356,2]
[377226914,1754305856665,-500.0,0.00038356,2]
[377226915,1754305856674,-500.0,0.00038356,2]
[377226916,1754305856683,-500.0,0.00038356,2]
[377226917,1754305856693,-500.0,0.00038356,2]
[377226918,1754305856702,-403.85817409,0.00038356,2]
[377226919,1754305856712,-500.0,0.00038356,2]
[377226920,1754305856721,-461.32,0.00038356,2]
[377226921,1754305856730,-500.0,0.00038356,2]
[377226922,1754305856740,-500.0,0.00038356,2]
[377226923,1754305856755,-403.42142921,0.00038356,2]
[377226924,1754305856765,-400.0,0.00038356,2]
[377226925,1754305856774,-400.0,0.00038356,2]